[Event "Titled Tuesday Blitz July 25 Late 2023"]
[White "campochess"]
[Black "Sargsyan, Anna M."]
[BlackFideId "13308130"]
[WhiteElo "2216"]
[BlackElo "2565"]
[Result "0-1"]
[Round "10"]
[TimeControl "180+2"]
[Date "2023.07.25"]
[WhiteClock "0:00:00"]
[BlackClock "0:00:46"]
[Board "60"]

1. d4 {[%clk 0:02:54]}  d5 {[%clk 0:02:59]} 2. Bg5 {[%clk 0:02:53]}  f6 {[%clk 0:02:58]} 3. Bc1 {[%clk 0:02:51]}  Be6 {[%clk 0:02:56]} 4. e3 {[%clk 0:02:51]}  Bf7 {[%clk 0:02:57]} 5. Nd2 {[%clk 0:02:50]}  e5 {[%clk 0:02:57]} 6. c4 {[%clk 0:02:49]}  c6 {[%clk 0:02:57]} 7. cxd5 {[%clk 0:02:49]}  cxd5 {[%clk 0:02:56]} 8. Ne2 {[%clk 0:02:46]}  Nc6 {[%clk 0:02:56]} 9. Nc3 {[%clk 0:02:46]}  Bd6 {[%clk 0:02:56]} 10. Bb5 {[%clk 0:02:44]}  Ne7 {[%clk 0:02:57]} 11. e4 {[%clk 0:02:37]}  exd4 {[%clk 0:02:54]} 12. Nxd5 {[%clk 0:02:36]}  Nxd5 {[%clk 0:02:52]} 13. exd5 {[%clk 0:02:36]}  Bxd5 {[%clk 0:02:53]} 14. O-O {[%clk 0:02:32]}  O-O {[%clk 0:02:52]} 15. Bc4 {[%clk 0:02:30]}  Bxc4 {[%clk 0:02:39]} 16. Nxc4 {[%clk 0:02:29]}  Kh8 {[%clk 0:02:39]} 17. Bd2 {[%clk 0:02:23]}  Bc7 {[%clk 0:02:35]} 18. Rc1 {[%clk 0:02:20]}  Qd5 {[%clk 0:02:29]} 19. Re1 {[%clk 0:02:07]}  Rae8 {[%clk 0:02:27]} 20. b3 {[%clk 0:02:04]}  Ne5 {[%clk 0:02:22]} 21. Bb4 {[%clk 0:01:49]}  Rg8 {[%clk 0:02:16]} 22. Ne3 {[%clk 0:01:48]}  Qd7 {[%clk 0:02:09]} 23. Nf1 {[%clk 0:01:42]}  Rd8 {[%clk 0:02:07]} 24. Qh5 {[%clk 0:01:40]}  Rge8 {[%clk 0:02:02]} 25. Ng3 {[%clk 0:01:38]}  d3 {[%clk 0:01:58]} 26. Red1 {[%clk 0:01:37]}  Bb6 {[%clk 0:01:53]} 27. Qf5 {[%clk 0:01:27]}  Qxf5 {[%clk 0:01:45]} 28. Nxf5 {[%clk 0:01:26]}  Ng4 {[%clk 0:01:45]} 29. Bc5 {[%clk 0:01:23]}  g6 {[%clk 0:01:39]} 30. Bxb6 {[%clk 0:01:11]}  axb6 {[%clk 0:01:40]} 31. Ng3 {[%clk 0:01:06]}  Re2 {[%clk 0:01:38]} 32. Rc3 {[%clk 0:00:52]}  Rxa2 {[%clk 0:01:34]} 33. Rcxd3 {[%clk 0:00:50]}  Rxd3 {[%clk 0:01:29]} 34. Rxd3 {[%clk 0:00:49]}  Nxf2 {[%clk 0:01:28]} 35. Rd7 {[%clk 0:00:46]}  Ng4 {[%clk 0:01:25]} 36. Nf1 {[%clk 0:00:37]}  Ra1 {[%clk 0:01:23]} 37. Re7 {[%clk 0:00:37]}  Kg8 {[%clk 0:01:23]} 38. h3 {[%clk 0:00:37]}  Kf8 {[%clk 0:01:17]} 39. Re2 {[%clk 0:00:35]}  Ne5 {[%clk 0:01:17]} 40. Rf2 {[%clk 0:00:24]}  Kf7 {[%clk 0:01:16]} 41. Kh2 {[%clk 0:00:24]}  Ra3 {[%clk 0:01:16]} 42. Rc2 {[%clk 0:00:20]}  Rxb3 {[%clk 0:01:09]} 43. Rc7+ {[%clk 0:00:19]}  Ke6 {[%clk 0:01:09]} 44. Rxh7 {[%clk 0:00:18]}  b5 {[%clk 0:01:09]} 45. Rxb7 {[%clk 0:00:18]}  f5 {[%clk 0:01:03]} 46. Ng3 {[%clk 0:00:17]}  Rb2 {[%clk 0:00:59]} 47. Rb6+ {[%clk 0:00:13]}  Kd5 {[%clk 0:00:59]} 48. Nf1 {[%clk 0:00:12]}  f4 {[%clk 0:00:56]} 49. Rb8 {[%clk 0:00:07]}  b4 {[%clk 0:00:55]} 50. Rd8+ {[%clk 0:00:06]}  Ke4 {[%clk 0:00:48]} 51. Nd2+ {[%clk 0:00:07]}  Ke3 {[%clk 0:00:48]} 52. Nf1+ {[%clk 0:00:00]}  Kf2 {[%clk 0:00:46]} 0-1


[Site "https://www.chess.com"]

[Event "Titled Tuesday Blitz July 25 Late 2023"]
[White "Vlassov, Nikolai"]
[Black "Liu, Casper"]
[WhiteFideId "4103360"]
[BlackFideId "1454153"]
[WhiteElo "2559"]
[BlackElo "2475"]
[Result "0-1"]
[Round "10"]
[TimeControl "180+2"]
[Date "2023.07.25"]
[WhiteClock "0:00:00"]
[BlackClock "0:00:08"]
[Board "61"]

1. e4 {[%clk 0:03:00]}  c5 {[%clk 0:02:59]} 2. c3 {[%clk 0:03:00]}  e5 {[%clk 0:02:59]} 3. Nf3 {[%clk 0:03:00]}  Nc6 {[%clk 0:02:58]} 4. Bc4 {[%clk 0:03:00]}  d6 {[%clk 0:02:58]} 5. O-O {[%clk 0:03:01]}  g5 {[%clk 0:02:56]} 6. d4 {[%clk 0:02:58]}  g4 {[%clk 0:02:52]} 7. Ng5 {[%clk 0:02:55]}  Nh6 {[%clk 0:02:52]} 8. dxc5 {[%clk 0:02:52]}  Be7 {[%clk 0:02:46]} 9. f4 {[%clk 0:02:49]}  exf4 {[%clk 0:02:42]} 10. Nxf7 {[%clk 0:02:28]}  Nxf7 {[%clk 0:02:43]} 11. Bxf7+ {[%clk 0:02:27]}  Kxf7 {[%clk 0:02:44]} 12. Bxf4 {[%clk 0:02:27]}  Kg7 {[%clk 0:02:09]} 13. cxd6 {[%clk 0:02:26]}  Bf6 {[%clk 0:02:02]} 14. Na3 {[%clk 0:02:09]}  Be6 {[%clk 0:01:55]} 15. Kh1 {[%clk 0:01:50]}  Qa5 {[%clk 0:01:49]} 16. Qd2 {[%clk 0:01:35]}  h5 {[%clk 0:01:23]} 17. Rae1 {[%clk 0:01:33]}  Ne5 {[%clk 0:01:19]} 18. Nc2 {[%clk 0:01:14]}  Bc4 {[%clk 0:01:13]} 19. Bxe5 {[%clk 0:01:04]}  Qxe5 {[%clk 0:01:08]} 20. Rf5 {[%clk 0:01:04]}  Qe8 {[%clk 0:00:48]} 21. e5 {[%clk 0:00:55]}  Bh4 {[%clk 0:00:47]} 22. e6 {[%clk 0:00:34]}  Bxe6 {[%clk 0:00:27]} 23. g3 {[%clk 0:00:20]}  Qc6+ {[%clk 0:00:24]} 24. Kg1 {[%clk 0:00:21]}  Bxf5 {[%clk 0:00:23]} 25. gxh4 {[%clk 0:00:21]}  Rae8 {[%clk 0:00:18]} 26. Qg5+ {[%clk 0:00:17]}  Bg6 {[%clk 0:00:18]} 27. Re7+ {[%clk 0:00:17]}  Rxe7 {[%clk 0:00:19]} 28. Qxe7+ {[%clk 0:00:18]}  Bf7 {[%clk 0:00:18]} 29. Nd4 {[%clk 0:00:15]}  Qd5 {[%clk 0:00:16]} 30. d7 {[%clk 0:00:13]}  Rf8 {[%clk 0:00:10]} 31. a4 {[%clk 0:00:11]}  Kg8 {[%clk 0:00:09]} 32. b4 {[%clk 0:00:00]}  Bg6 {[%clk 0:00:08]} 0-1


[Site "https://www.chess.com"]

[Event "Titled Tuesday Blitz July 25 Late 2023"]
[White "MateoReyes"]
[Black "Ambartsumova, Karina"]
[BlackFideId "4166299"]
[WhiteElo "2472"]
[BlackElo "2550"]
[Result "0-1"]
[Round "10"]
[TimeControl "180+2"]
[Date "2023.07.25"]
[WhiteClock "0:00:14"]
[BlackClock "0:00:10"]
[Board "62"]

1. Nf3 {[%clk 0:02:58]}  Nf6 {[%clk 0:03:00]} 2. d4 {[%clk 0:02:57]}  d6 {[%clk 0:03:00]} 3. c4 {[%clk 0:02:57]}  g6 {[%clk 0:03:00]} 4. Nc3 {[%clk 0:02:57]}  Bg7 {[%clk 0:03:01]} 5. Bg5 {[%clk 0:02:56]}  O-O {[%clk 0:02:59]} 6. e3 {[%clk 0:02:57]}  h6 {[%clk 0:02:54]} 7. Bh4 {[%clk 0:02:56]}  g5 {[%clk 0:02:53]} 8. Bg3 {[%clk 0:02:55]}  Nh5 {[%clk 0:02:54]} 9. Be2 {[%clk 0:02:54]}  Nxg3 {[%clk 0:02:52]} 10. hxg3 {[%clk 0:02:54]}  c5 {[%clk 0:02:48]} 11. Qc2 {[%clk 0:02:53]}  Nc6 {[%clk 0:02:45]} 12. Nxg5 {[%clk 0:02:51]}  f5 {[%clk 0:02:30]} 13. Nf3 {[%clk 0:02:47]}  cxd4 {[%clk 0:02:21]} 14. exd4 {[%clk 0:02:46]}  e5 {[%clk 0:02:17]} 15. dxe5 {[%clk 0:02:45]}  dxe5 {[%clk 0:02:18]} 16. Rd1 {[%clk 0:02:42]}  Qa5 {[%clk 0:02:04]} 17. Rd5 {[%clk 0:02:35]}  Qc7 {[%clk 0:02:04]} 18. Rd1 {[%clk 0:02:34]}  e4 {[%clk 0:02:01]} 19. Nd5 {[%clk 0:02:32]}  Qf7 {[%clk 0:01:53]} 20. Nh4 {[%clk 0:02:24]}  Be6 {[%clk 0:01:48]} 21. Nf4 {[%clk 0:02:18]}  Nd4 {[%clk 0:01:37]} 22. Rxd4 {[%clk 0:02:04]}  Bxd4 {[%clk 0:01:36]} 23. Nhg6 {[%clk 0:02:04]}  Rfe8 {[%clk 0:01:20]} 24. Rxh6 {[%clk 0:02:03]}  Bg7 {[%clk 0:01:20]} 25. Rh4 {[%clk 0:02:00]}  Rac8 {[%clk 0:01:19]} 26. Nxe6 {[%clk 0:01:55]}  Rxe6 {[%clk 0:01:14]} 27. Nf4 {[%clk 0:01:54]}  Rec6 {[%clk 0:01:03]} 28. b3 {[%clk 0:01:44]}  Qf6 {[%clk 0:01:03]} 29. Nd5 {[%clk 0:01:33]}  Qa1+ {[%clk 0:01:02]} 30. Qd1 {[%clk 0:01:33]}  Qe5 {[%clk 0:00:50]} 31. Kf1 {[%clk 0:01:12]}  Rh6 {[%clk 0:00:46]} 32. Rxh6 {[%clk 0:01:08]}  Bxh6 {[%clk 0:00:47]} 33. Kg1 {[%clk 0:01:01]}  Rd8 {[%clk 0:00:33]} 34. Qe1 {[%clk 0:01:00]}  b6 {[%clk 0:00:28]} 35. Qb4 {[%clk 0:00:59]}  Bf8 {[%clk 0:00:22]} 36. Qa4 {[%clk 0:00:56]}  Qa1+ {[%clk 0:00:20]} 37. Kh2 {[%clk 0:00:55]}  Qg7 {[%clk 0:00:21]} 38. Qc6 {[%clk 0:00:43]}  Rd6 {[%clk 0:00:21]} 39. Qc8 {[%clk 0:00:42]}  Rh6+ {[%clk 0:00:17]} 40. Kg1 {[%clk 0:00:41]}  Qa1+ {[%clk 0:00:17]} 41. Bf1 {[%clk 0:00:42]}  Qe5 {[%clk 0:00:18]} 42. Nf4 {[%clk 0:00:37]}  e3 {[%clk 0:00:15]} 43. f3 {[%clk 0:00:25]}  Qc5 {[%clk 0:00:11]} 44. Ne2 {[%clk 0:00:14]}  Qxc8 {[%clk 0:00:10]} 0-1


[Site "https://www.chess.com"]

[Event "Titled Tuesday Blitz July 25 Late 2023"]
[White "Perske, Thore"]
[Black "Fonseca Manrique, Enrique"]
[WhiteFideId "12902195"]
[BlackFideId "5114330"]
[WhiteElo "2467"]
[BlackElo "2545"]
[Result "1-0"]
[Round "10"]
[TimeControl "180+2"]
[Date "2023.07.25"]
[WhiteClock "0:00:19"]
[BlackClock "0:00:00"]
[Board "63"]

1. d4 {[%clk 0:03:00]}  Nf6 {[%clk 0:02:57]} 2. g3 {[%clk 0:03:01]}  g6 {[%clk 0:02:56]} 3. Bg2 {[%clk 0:03:01]}  Bg7 {[%clk 0:02:57]} 4. e4 {[%clk 0:03:01]}  O-O {[%clk 0:02:57]} 5. Ne2 {[%clk 0:03:02]}  c5 {[%clk 0:02:57]} 6. dxc5 {[%clk 0:03:01]}  Qa5+ {[%clk 0:02:57]} 7. Nbc3 {[%clk 0:03:01]}  Qxc5 {[%clk 0:02:57]} 8. O-O {[%clk 0:03:02]}  d6 {[%clk 0:02:56]} 9. h3 {[%clk 0:03:02]}  Qc7 {[%clk 0:02:55]} 10. Nf4 {[%clk 0:02:57]}  Nc6 {[%clk 0:02:54]} 11. Nfd5 {[%clk 0:02:56]}  Qd8 {[%clk 0:02:54]} 12. Re1 {[%clk 0:02:54]}  Be6 {[%clk 0:02:53]} 13. Bg5 {[%clk 0:02:50]}  Rc8 {[%clk 0:02:50]} 14. Qd2 {[%clk 0:02:46]}  Re8 {[%clk 0:02:49]} 15. Nxf6+ {[%clk 0:02:42]}  exf6 {[%clk 0:02:49]} 16. Bh6 {[%clk 0:02:23]}  Bh8 {[%clk 0:02:47]} 17. Rad1 {[%clk 0:02:13]}  Qb6 {[%clk 0:02:41]} 18. b3 {[%clk 0:02:03]}  Qa5 {[%clk 0:02:09]} 19. Nd5 {[%clk 0:01:36]}  Qxa2 {[%clk 0:01:46]} 20. Ra1 {[%clk 0:01:34]}  Qb2 {[%clk 0:01:45]} 21. Reb1 {[%clk 0:01:33]}  Qd4 {[%clk 0:01:44]} 22. Qxd4 {[%clk 0:01:10]}  Nxd4 {[%clk 0:01:41]} 23. Rxa7 {[%clk 0:01:11]}  Rxc2 {[%clk 0:01:21]} 24. Rxb7 {[%clk 0:01:10]}  Bxd5 {[%clk 0:01:15]} 25. exd5 {[%clk 0:01:11]}  Bg7 {[%clk 0:00:54]} 26. Be3 {[%clk 0:00:58]}  Nf5 {[%clk 0:00:41]} 27. Ba7 {[%clk 0:00:58]}  Ree2 {[%clk 0:00:22]} 28. b4 {[%clk 0:00:42]}  Bh6 {[%clk 0:00:22]} 29. b5 {[%clk 0:00:35]}  Nxg3 {[%clk 0:00:18]} 30. Bf3 {[%clk 0:00:33]}  Re5 {[%clk 0:00:03]} 31. fxg3 {[%clk 0:00:30]}  Rg5 {[%clk 0:00:02]} 32. Bf2 {[%clk 0:00:27]}  Rf5 {[%clk 0:00:03]} 33. Rb3 {[%clk 0:00:21]}  Kg7 {[%clk 0:00:03]} 34. b6 {[%clk 0:00:19]}  Re5 {[%clk 0:00:03]} 35. Rc7 {[%clk 0:00:19]}  f5 {[%clk 0:00:00]} 36. Rxc2 {[%clk 0:00:19]} 1-0


[Site "https://www.chess.com"]

[Event "Titled Tuesday Blitz July 25 Late 2023"]
[White "Garakov, Mikhael"]
[Black "SergioMoralesG"]
[WhiteFideId "4169034"]
[WhiteElo "2519"]
[BlackElo "2451"]
[Result "1-0"]
[Round "10"]
[TimeControl "180+2"]
[Date "2023.07.25"]
[WhiteClock "0:00:28"]
[BlackClock "0:00:00"]
[Board "65"]

1. e4 {[%clk 0:03:00]}  c5 {[%clk 0:02:59]} 2. Nf3 {[%clk 0:02:59]}  e6 {[%clk 0:02:59]} 3. c4 {[%clk 0:02:59]}  Nc6 {[%clk 0:02:58]} 4. Nc3 {[%clk 0:02:59]}  Nf6 {[%clk 0:02:58]} 5. Be2 {[%clk 0:02:59]}  g6 {[%clk 0:02:51]} 6. d4 {[%clk 0:02:54]}  cxd4 {[%clk 0:02:47]} 7. Nxd4 {[%clk 0:02:55]}  Bg7 {[%clk 0:02:39]} 8. Be3 {[%clk 0:02:55]}  O-O {[%clk 0:02:35]} 9. Ndb5 {[%clk 0:02:50]}  Qa5 {[%clk 0:02:06]} 10. O-O {[%clk 0:02:48]}  Ne8 {[%clk 0:01:36]} 11. a3 {[%clk 0:02:39]}  a6 {[%clk 0:01:34]} 12. b4 {[%clk 0:02:33]}  Qd8 {[%clk 0:01:34]} 13. Nd4 {[%clk 0:02:33]}  Qc7 {[%clk 0:01:30]} 14. Rc1 {[%clk 0:02:30]}  d6 {[%clk 0:01:28]} 15. Qd2 {[%clk 0:02:19]}  Bd7 {[%clk 0:01:26]} 16. Rfd1 {[%clk 0:02:19]}  Ne5 {[%clk 0:01:22]} 17. f4 {[%clk 0:02:11]}  Nc6 {[%clk 0:01:10]} 18. Nb3 {[%clk 0:02:11]}  Rd8 {[%clk 0:01:04]} 19. Na4 {[%clk 0:02:04]}  Qb8 {[%clk 0:01:01]} 20. Nb6 {[%clk 0:02:02]}  Bc8 {[%clk 0:00:59]} 21. Bf1 {[%clk 0:01:16]}  Nf6 {[%clk 0:00:58]} 22. Bd3 {[%clk 0:01:13]}  e5 {[%clk 0:00:55]} 23. Kh1 {[%clk 0:01:10]}  Ng4 {[%clk 0:00:53]} 24. Bg1 {[%clk 0:01:10]}  exf4 {[%clk 0:00:51]} 25. Nd5 {[%clk 0:01:07]}  Nce5 {[%clk 0:00:48]} 26. Be2 {[%clk 0:01:06]}  Be6 {[%clk 0:00:43]} 27. h3 {[%clk 0:00:59]}  Nf6 {[%clk 0:00:36]} 28. Qxf4 {[%clk 0:00:58]}  Bxd5 {[%clk 0:00:33]} 29. cxd5 {[%clk 0:00:56]}  Nh5 {[%clk 0:00:28]} 30. Bxh5 {[%clk 0:00:48]}  gxh5 {[%clk 0:00:29]} 31. Bb6 {[%clk 0:00:45]}  Ng6 {[%clk 0:00:20]} 32. Qf3 {[%clk 0:00:40]}  Rc8 {[%clk 0:00:17]} 33. Nd4 {[%clk 0:00:39]}  Rxc1 {[%clk 0:00:12]} 34. Rxc1 {[%clk 0:00:40]}  Qe8 {[%clk 0:00:11]} 35. Nf5 {[%clk 0:00:38]}  Be5 {[%clk 0:00:10]} 36. Qxh5 {[%clk 0:00:37]}  Qb5 {[%clk 0:00:09]} 37. Bd4 {[%clk 0:00:35]}  Qd3 {[%clk 0:00:08]} 38. Bxe5 {[%clk 0:00:34]}  Qd2 {[%clk 0:00:00]} 39. Qh6 {[%clk 0:00:28]} 1-0


[Site "https://www.chess.com"]

[Event "Titled Tuesday Blitz July 25 Late 2023"]
[White "Davidson, Kevin"]
[Black "Pinheiro, Iung Alicio de O."]
[WhiteFideId "2056810"]
[BlackFideId "2104350"]
[WhiteElo "2393"]
[BlackElo "2585"]
[Result "0-1"]
[Round "10"]
[TimeControl "180+2"]
[Date "2023.07.25"]
[WhiteClock "0:01:24"]
[BlackClock "0:01:15"]
[Board "72"]

1. e4 {[%clk 0:03:00]}  c5 {[%clk 0:02:58]} 2. Nf3 {[%clk 0:03:00]}  Nc6 {[%clk 0:02:58]} 3. d4 {[%clk 0:03:01]}  cxd4 {[%clk 0:02:58]} 4. Nxd4 {[%clk 0:03:01]}  e5 {[%clk 0:02:58]} 5. Nb5 {[%clk 0:03:01]}  d6 {[%clk 0:02:58]} 6. Bc4 {[%clk 0:02:59]}  Be7 {[%clk 0:02:41]} 7. O-O {[%clk 0:02:58]}  Nf6 {[%clk 0:02:37]} 8. Bg5 {[%clk 0:02:54]}  Nxe4 {[%clk 0:02:19]} 9. Bxe7 {[%clk 0:02:44]}  Qxe7 {[%clk 0:02:20]} 10. N1c3 {[%clk 0:02:16]}  Nxc3 {[%clk 0:02:01]} 11. Nxd6+ {[%clk 0:02:15]}  Kd7 {[%clk 0:01:36]} 12. bxc3 {[%clk 0:02:08]}  Qxd6 {[%clk 0:01:35]} 13. Qg4+ {[%clk 0:02:08]}  Kc7 {[%clk 0:01:32]} 14. Qxg7 {[%clk 0:02:04]}  Be6 {[%clk 0:01:32]} 15. Rfd1 {[%clk 0:01:57]}  Qe7 {[%clk 0:01:31]} 16. Bd5 {[%clk 0:01:31]}  Rag8 {[%clk 0:01:25]} 17. Qh6 {[%clk 0:01:31]}  Qg5 {[%clk 0:01:14]} 18. Qxg5 {[%clk 0:01:24]}  Rxg5 {[%clk 0:01:15]} 0-1


[Site "https://www.chess.com"]

[Event "Titled Tuesday Blitz July 25 Late 2023"]
[White "Rottenwohrer Suarez, Juan"]
[Black "Haitin, Ilja"]
[WhiteFideId "32068182"]
[BlackFideId "4501764"]
[WhiteElo "2515"]
[BlackElo "2378"]
[Result "1-0"]
[Round "10"]
[TimeControl "180+2"]
[Date "2023.07.25"]
[WhiteClock "0:00:03"]
[BlackClock "0:00:00"]
[Board "74"]

1. e4 {[%clk 0:03:00]}  b6 {[%clk 0:02:54]} 2. d4 {[%clk 0:02:56]}  Bb7 {[%clk 0:02:52]} 3. Nc3 {[%clk 0:02:56]}  e6 {[%clk 0:02:53]} 4. Nf3 {[%clk 0:02:48]}  Bb4 {[%clk 0:02:49]} 5. Bd3 {[%clk 0:02:44]}  Nf6 {[%clk 0:02:45]} 6. Qe2 {[%clk 0:02:42]}  d5 {[%clk 0:02:45]} 7. e5 {[%clk 0:02:40]}  Ne4 {[%clk 0:02:45]} 8. O-O {[%clk 0:02:38]}  Nxc3 {[%clk 0:02:43]} 9. bxc3 {[%clk 0:02:36]}  Bxc3 {[%clk 0:02:44]} 10. Rb1 {[%clk 0:02:33]}  Nc6 {[%clk 0:02:44]} 11. Qe3 {[%clk 0:02:17]}  Ba5 {[%clk 0:02:33]} 12. Ba3 {[%clk 0:02:13]}  Qd7 {[%clk 0:02:31]} 13. Qg5 {[%clk 0:02:10]}  h6 {[%clk 0:02:21]} 14. Qh4 {[%clk 0:01:53]}  g5 {[%clk 0:02:17]} 15. Nxg5 {[%clk 0:01:46]}  O-O-O {[%clk 0:02:08]} 16. Nh7 {[%clk 0:01:40]}  Rdg8 {[%clk 0:01:18]} 17. Nf6 {[%clk 0:01:33]}  Qd8 {[%clk 0:01:18]} 18. Qf4 {[%clk 0:01:12]}  Rg5 {[%clk 0:01:14]} 19. g3 {[%clk 0:00:59]}  Bc3 {[%clk 0:01:10]} 20. Bb2 {[%clk 0:00:51]}  Bxb2 {[%clk 0:01:10]} 21. Rxb2 {[%clk 0:00:52]}  Qe7 {[%clk 0:01:09]} 22. Rb3 {[%clk 0:00:14]}  Rg7 {[%clk 0:01:08]} 23. Kg2 {[%clk 0:00:07]}  h5 {[%clk 0:01:08]} 24. h4 {[%clk 0:00:07]}  a6 {[%clk 0:01:06]} 25. c3 {[%clk 0:00:07]}  Na5 {[%clk 0:01:05]} 26. Rb2 {[%clk 0:00:06]}  Kb8 {[%clk 0:01:05]} 27. Rfb1 {[%clk 0:00:05]}  Ka7 {[%clk 0:01:05]} 28. Kf1 {[%clk 0:00:04]}  Bc6 {[%clk 0:01:05]} 29. Kg1 {[%clk 0:00:04]}  Nc4 {[%clk 0:00:57]} 30. Re2 {[%clk 0:00:02]}  Na3 {[%clk 0:00:55]} 31. Rbe1 {[%clk 0:00:02]}  Bb5 {[%clk 0:00:52]} 32. Bxb5 {[%clk 0:00:01]}  Nxb5 {[%clk 0:00:53]} 33. Qc1 {[%clk 0:00:01]}  Na3 {[%clk 0:00:40]} 34. Rd2 {[%clk 0:00:02]}  Nc4 {[%clk 0:00:40]} 35. Rde2 {[%clk 0:00:02]}  Rg6 {[%clk 0:00:38]} 36. Kg2 {[%clk 0:00:03]}  Rxf6 {[%clk 0:00:38]} 37. exf6 {[%clk 0:00:02]}  Qxf6 {[%clk 0:00:39]} 38. Qf4 {[%clk 0:00:03]}  Qe7 {[%clk 0:00:35]} 39. Kh2 {[%clk 0:00:02]}  Rg8 {[%clk 0:00:35]} 40. Kg2 {[%clk 0:00:02]}  Rg4 {[%clk 0:00:34]} 41. Qh6 {[%clk 0:00:02]}  Qxh4 {[%clk 0:00:31]} 42. Rh1 {[%clk 0:00:02]}  Qg5 {[%clk 0:00:25]} 43. Qxg5 {[%clk 0:00:03]}  Rxg5 {[%clk 0:00:26]} 44. Rh4 {[%clk 0:00:02]}  c5 {[%clk 0:00:20]} 45. Re1 {[%clk 0:00:03]}  cxd4 {[%clk 0:00:19]} 46. cxd4 {[%clk 0:00:04]}  b5 {[%clk 0:00:20]} 47. Reh1 {[%clk 0:00:03]}  b4 {[%clk 0:00:17]} 48. Rxh5 {[%clk 0:00:04]}  Rg4 {[%clk 0:00:16]} 49. Rh7 {[%clk 0:00:04]}  Rxd4 {[%clk 0:00:16]} 50. Rxf7+ {[%clk 0:00:04]}  Kb6 {[%clk 0:00:16]} 51. Rh6 {[%clk 0:00:05]}  Re4 {[%clk 0:00:14]} 52. Re7 {[%clk 0:00:05]}  Kb5 {[%clk 0:00:11]} 53. Rexe6 {[%clk 0:00:03]}  Rd4 {[%clk 0:00:12]} 54. Rxa6 {[%clk 0:00:03]}  Rd2 {[%clk 0:00:12]} 55. g4 {[%clk 0:00:02]}  Ne3+ {[%clk 0:00:06]} 56. Kf3 {[%clk 0:00:02]}  Nf1 {[%clk 0:00:04]} 57. g5 {[%clk 0:00:02]}  d4 {[%clk 0:00:01]} 58. Rhb6+ {[%clk 0:00:02]}  Kc4 {[%clk 0:00:01]} 59. g6 {[%clk 0:00:03]}  Kd3 {[%clk 0:00:01]} 60. g7 {[%clk 0:00:03]}  Nh2+ {[%clk 0:00:02]} 61. Kg2 {[%clk 0:00:02]}  Ng4 {[%clk 0:00:03]} 62. g8=Q {[%clk 0:00:02]}  Nxf2 {[%clk 0:00:04]} 63. Kg3 {[%clk 0:00:02]}  Ne4+ {[%clk 0:00:04]} 64. Kh4 {[%clk 0:00:03]}  Nc3 {[%clk 0:00:04]} 65. Qg6+ {[%clk 0:00:02]}  Kc4 {[%clk 0:00:04]} 66. Kg5 {[%clk 0:00:03]}  Rg2+ {[%clk 0:00:04]} 67. Kh6 {[%clk 0:00:03]}  Rxg6+ {[%clk 0:00:05]} 68. Kxg6 {[%clk 0:00:04]}  d3 {[%clk 0:00:05]} 69. Kf5 {[%clk 0:00:05]}  d2 {[%clk 0:00:05]} 70. Rc6+ {[%clk 0:00:04]}  Kb5 {[%clk 0:00:04]} 71. Rd6 {[%clk 0:00:05]}  d1=Q {[%clk 0:00:04]} 72. Rxd1 {[%clk 0:00:05]}  Nxd1 {[%clk 0:00:05]} 73. Re6 {[%clk 0:00:04]}  Nc3 {[%clk 0:00:05]} 74. Re5+ {[%clk 0:00:04]}  Kc4 {[%clk 0:00:05]} 75. Kf4 {[%clk 0:00:03]}  Nxa2 {[%clk 0:00:05]} 76. Ke3 {[%clk 0:00:04]}  Nc3 {[%clk 0:00:05]} 77. Kd2 {[%clk 0:00:04]}  Kb3 {[%clk 0:00:05]} 78. Re3 {[%clk 0:00:04]}  Kb2 {[%clk 0:00:05]} 79. Re8 {[%clk 0:00:03]}  b3 {[%clk 0:00:05]} 80. Rb8 {[%clk 0:00:03]}  Ne4+ {[%clk 0:00:06]} 81. Kd3 {[%clk 0:00:03]}  Nf2+ {[%clk 0:00:06]} 82. Kc4 {[%clk 0:00:02]}  Kc2 {[%clk 0:00:05]} 83. Rxb3 {[%clk 0:00:03]}  Ne4 {[%clk 0:00:05]} 84. Re3 {[%clk 0:00:03]}  Nd2+ {[%clk 0:00:05]} 85. Kb4 {[%clk 0:00:03]}  Kd1 {[%clk 0:00:04]} 86. Kc3 {[%clk 0:00:02]}  Nb1+ {[%clk 0:00:04]} 87. Kd3 {[%clk 0:00:03]}  Kc1 {[%clk 0:00:04]} 88. Re2 {[%clk 0:00:03]}  Na3 {[%clk 0:00:03]} 89. Ra2 {[%clk 0:00:02]}  Nb1 {[%clk 0:00:03]} 90. Rc2+ {[%clk 0:00:02]}  Kd1 {[%clk 0:00:03]} 91. Rh2 {[%clk 0:00:03]}  Kc1 {[%clk 0:00:04]} 92. Rg2 {[%clk 0:00:03]}  Na3 {[%clk 0:00:00]} 93. Rf2 {[%clk 0:00:03]} 1-0


[Site "https://www.chess.com"]

[Event "Titled Tuesday Blitz July 25 Late 2023"]
[White "Lalanne, Pablo"]
[Black "Toniutti, Ezio"]
[WhiteFideId "112151"]
[BlackFideId "113034"]
[WhiteElo "2372"]
[BlackElo "2491"]
[Result "0-1"]
[Round "10"]
[TimeControl "180+2"]
[Date "2023.07.25"]
[WhiteClock "0:00:03"]
[BlackClock "0:00:24"]
[Board "75"]

1. e4 {[%clk 0:03:00]}  e5 {[%clk 0:02:58]} 2. Nf3 {[%clk 0:03:00]}  Nc6 {[%clk 0:02:58]} 3. Bb5 {[%clk 0:03:00]}  a6 {[%clk 0:02:57]} 4. Ba4 {[%clk 0:03:00]}  d6 {[%clk 0:02:58]} 5. c4 {[%clk 0:02:57]}  g6 {[%clk 0:02:49]} 6. d4 {[%clk 0:02:56]}  Bd7 {[%clk 0:02:46]} 7. d5 {[%clk 0:02:54]}  Nce7 {[%clk 0:02:45]} 8. Nc3 {[%clk 0:02:51]}  Bg7 {[%clk 0:02:43]} 9. O-O {[%clk 0:02:50]}  h6 {[%clk 0:02:31]} 10. Re1 {[%clk 0:02:39]}  f5 {[%clk 0:02:28]} 11. exf5 {[%clk 0:02:27]}  gxf5 {[%clk 0:02:27]} 12. c5 {[%clk 0:02:12]}  Nf6 {[%clk 0:02:11]} 13. Bb3 {[%clk 0:01:37]}  e4 {[%clk 0:01:50]} 14. cxd6 {[%clk 0:01:28]}  cxd6 {[%clk 0:01:45]} 15. Nd4 {[%clk 0:01:27]}  O-O {[%clk 0:01:43]} 16. Bf4 {[%clk 0:01:11]}  Ng4 {[%clk 0:01:20]} 17. h3 {[%clk 0:00:52]}  Ne5 {[%clk 0:01:19]} 18. Qd2 {[%clk 0:00:43]}  Kh7 {[%clk 0:01:17]} 19. Bxe5 {[%clk 0:00:35]}  dxe5 {[%clk 0:01:14]} 20. Nde2 {[%clk 0:00:28]}  Ng6 {[%clk 0:01:07]} 21. Rad1 {[%clk 0:00:22]}  Qh4 {[%clk 0:01:04]} 22. Qe3 {[%clk 0:00:19]}  Rad8 {[%clk 0:00:55]} 23. Qg3 {[%clk 0:00:19]}  Qf6 {[%clk 0:00:52]} 24. Qe3 {[%clk 0:00:18]}  f4 {[%clk 0:00:37]} 25. Qxe4 {[%clk 0:00:17]}  Bf5 {[%clk 0:00:36]} 26. Qc4 {[%clk 0:00:16]}  b5 {[%clk 0:00:34]} 27. Qc6 {[%clk 0:00:15]}  Qg5 {[%clk 0:00:32]} 28. f3 {[%clk 0:00:14]}  Nh4 {[%clk 0:00:30]} 29. g4 {[%clk 0:00:13]}  fxg3 {[%clk 0:00:26]} 30. Ne4 {[%clk 0:00:03]}  Nxf3+ {[%clk 0:00:24]} 0-1


[Site "https://www.chess.com"]